[Event "Chinese Championship-B Women 2024"]
[Site "Liaocheng"]
[Date "2024.04.24"]
[Round "6.14"]
[White "Liu, Youyin"]
[Black "Liu, Tian Yi"]
[Result "1/2-1/2"]
[WhiteElo "1840"]
[BlackElo "1636"]
[PlyCount "55"]
[EventDate "2024.04.24"]
[EventType "swiss"]
[EventCountry "CHN"]
[TimeControl "5400+30"]

1. e4 {[%emt 0:00:05]} c6 {[%emt 0:07:04]} 2. d4 {[%emt 0:00:11]} d5 {[%emt 0:00:06]} 3. e5 {[%emt 0:02:04]} c5 {[%emt 0:00:16]} 4. c3 {[%emt 0:00:31]} Nc6 {[%emt 0:00:08]} 5. Na3 {[%emt 0:09:23]} cxd4 {[%emt 0:06:01]} 6. cxd4 {[%emt 0:00:08]} Qb6 {[%emt 0:00:50]} 7. Bb5 {[%emt 0:04:49]} Bd7 {[%emt 0:04:05]} 8. Bxc6 {[%emt 0:04:46]} bxc6 {[%emt 0:05:15]} 9. Ne2 {[%emt 0:01:53]} e6 {[%emt 0:00:25]} 10. Nc2 {[%emt 0:01:18]} c5 {[%emt 0:02:57]} 11. O-O {[%emt 0:00:33]} Ne7 {[%emt 0:03:58]} 12. b3 {[%emt 0:07:17]} Nc6 {[%emt 0:02:20]} 13. Re1 {[%emt 1:04:02]} cxd4 14. Nexd4 {[%emt 0:00:00]} Nxd4 15. Qxd4 {[%emt 0:00:00]} Qxd4 16. Nxd4 {[%emt 0:00:00]} Bb4 {[%emt 0:08:39]} 17. Rd1 {[%emt 0:00:00]} Ke7 {[%emt 0:03:01]} 18. a4 {[%emt 0:00:00]} f6 {[%emt 0:06:52]} 19. f4 {[%emt 0:00:00]} a6 {[%emt 0:06:02]} 20. Ba3 {[%emt 0:00:00]} Bxa3 {[%emt 0:00:58]} 21. Rxa3 {[%emt 0:00:00]} Rhc8 {[%emt 0:01:32]} 22. Ra2 {[%emt 0:00:00]} fxe5 {[%emt 0:03:47]} 23. fxe5 {[%emt 0:00:00]} Rc3 {[%emt 0:01:34]} 24. Rc2 {[%emt 0:00:00]} Re3 {[%emt 0:13:55]} 25. Re2 {[%emt 0:00:00]} Rc3 {[%emt 0:02:22]} 26. Rc2 {[%emt 0:00:00]} Re3 {[%emt 0:01:28]} 27. Re2 {[%emt 0:00:00]} Rc3 {[%emt 0:03:15]} 28. Rc2 {[%emt 0:07:30]} 1/2-1/2

[Event "Chinese Championship-B Women 2024"]
[Site "Liaocheng"]
[Date "2024.04.24"]
[Round "6.15"]
[White "Zhu, Zile"]
[Black "Yang, Shufan"]
[Result "1-0"]
[WhiteElo "1819"]
[BlackElo "1627"]
[PlyCount "83"]
[EventDate "2024.04.24"]
[EventType "swiss"]
[EventCountry "CHN"]
[TimeControl "5400+30"]

1. d4 {[%emt 0:00:02]} Nf6 {[%emt 0:00:04]} 2. Bf4 {[%emt 0:00:05]} g6 {[%emt 0:00:05]} 3. Nc3 {[%emt 0:00:05]} Bg7 {[%emt 0:00:07]} 4. e4 {[%emt 0:00:12]} d6 {[%emt 0:00:05]} 5. Qd2 {[%emt 0:00:23]} Nbd7 {[%emt 0:00:18]} 6. Bh6 {[%emt 0:01:22]} O-O {[%emt 0:00:15]} 7. O-O-O {[%emt 0:00:20]} c6 {[%emt 0:01:02]} 8. f3 {[%emt 0:00:31]} e5 {[%emt 0:00:40]} 9. Nge2 {[%emt 0:02:09]} a6 {[%emt 0:01:34]} 10. Bxg7 {[%emt 0:01:35]} Kxg7 {[%emt 0:00:04]} 11. g4 {[%emt 0:00:41]} b5 {[%emt 0:02:13]} 12. h4 {[%emt 0:01:06]} b4 {[%emt 0:01:53]} 13. Na4 {[%emt 0:00:57]} Qa5 {[%emt 0:09:03]} 14. b3 {[%emt 0:00:12]} Nb6 {[%emt 0:02:50]} 15. Nxb6 {[%emt 0:01:55]} Qxb6 {[%emt 0:00:09]} 16. h5 {[%emt 0:01:02]} Ra7 {[%emt 0:05:34]} 17. h6+ {[%emt 0:04:21]} Kg8 {[%emt 0:00:13]} 18. Qg5 {[%emt 0:05:07]} Nd7 {[%emt 0:00:48]} 19. dxe5 {[%emt 0:00:33]} Qa5 {[%emt 0:04:04]} 20. Rxd6 {[%emt 0:08:45]} Qxe5 {[%emt 0:11:43]} 21. Qxe5 {[%emt 0:00:35]} Nxe5 {[%emt 0:02:39]} 22. Bg2 {[%emt 0:00:10]} Rc7 {[%emt 0:01:55]} 23. g5 {[%emt 0:07:51]} Nd7 {[%emt 0:06:54]} 24. Bh3 {[%emt 0:05:23]} Nb8 {[%emt 0:04:56]} 25. Bxc8 {[%emt 0:01:11]} Rcxc8 {[%emt 0:00:54]} 26. f4 {[%emt 0:00:28]} Rfe8 {[%emt 0:03:27]} 27. e5 {[%emt 0:00:30]} c5 {[%emt 0:03:18]} 28. Rhd1 {[%emt 0:05:32]} Kh8 {[%emt 0:03:45]} 29. Ng3 {[%emt 0:07:40]} c4 {[%emt 0:05:02]} 30. bxc4 {[%emt 0:00:53]} Rxc4 {[%emt 0:00:08]} 31. Rd8 {[%emt 0:00:19]} Rc8 {[%emt 0:00:10]} 32. Rxe8+ {[%emt 0:00:06]} Rxe8 {[%emt 0:00:04]} 33. Ne4 {[%emt 0:01:24]} Rf8 {[%emt 0:05:45]} 34. Rd6 {[%emt 0:01:51]} a5 {[%emt 0:01:52]} 35. Kb2 {[%emt 0:05:06]} Rc8 {[%emt 0:04:07]} 36. Rb6 {[%emt 0:00:46]} Rd8 {[%emt 0:02:42]} 37. Rb7 {[%emt 0:02:30]} Rf8 {[%emt 0:00:20]} 38. e6 {[%emt 0:05:09]} Nc6 {[%emt 0:01:50]} 39. Rxf7 {[%emt 0:00:16]} Rxf7 {[%emt 0:00:27]} 40. exf7 {[%emt 0:00:06]} Ne7 {[%emt 0:00:04]} 41. f8=Q+ {[%emt 0:00:07]} Ng8 {[%emt 0:00:05]} 42. Qg7# {[%emt 0:00:04]} 1-0

[Event "Chinese Championship-B Women 2024"]
[Site "Liaocheng"]
[Date "2024.04.24"]
[Round "7.1"]
[White "Jiang, Tianyu"]
[Black "Wang, Chuqiao"]
[Result "1/2-1/2"]
[WhiteElo "1929"]
[BlackElo "2302"]
[PlyCount "67"]
[EventDate "2024.04.24"]
[EventType "swiss"]
[EventCountry "CHN"]
[TimeControl "5400+30"]

1. e4 {[%emt 0:00:05]} e5 {[%emt 0:00:13]} 2. Nf3 {[%emt 0:00:18]} Nc6 {[%emt 0:00:17]} 3. Nc3 {[%emt 0:01:29]} Nf6 {[%emt 0:01:12]} 4. d4 {[%emt 0:01:49]} exd4 {[%emt 0:01:12]} 5. Nxd4 {[%emt 0:00:07]} Bb4 {[%emt 0:00:44]} 6. Nxc6 {[%emt 0:01:00]} bxc6 {[%emt 0:00:11]} 7. Bd3 {[%emt 0:00:37]} d5 {[%emt 0:00:33]} 8. exd5 {[%emt 0:01:24]} O-O {[%emt 0:00:23]} 9. O-O {[%emt 0:01:50]} cxd5 {[%emt 0:01:31]} 10. Bg5 {[%emt 0:01:21]} c6 {[%emt 0:05:33]} 11. Qf3 {[%emt 0:04:01]} Bd6 {[%emt 0:04:58]} 12. Rae1 {[%emt 0:02:04]} Rb8 {[%emt 0:02:38]} 13. Nd1 {[%emt 0:10:31]} h6 {[%emt 0:06:57]} 14. Bxf6 {[%emt 0:04:48]} Qxf6 {[%emt 0:00:15]} 15. Qxf6 {[%emt 0:00:47]} gxf6 {[%emt 0:00:08]} 16. b3 {[%emt 0:05:06]} f5 {[%emt 0:02:08]} 17. Ne3 {[%emt 0:04:05]} f4 {[%emt 0:00:37]} 18. Nf5 {[%emt 0:00:35]} Bxf5 {[%emt 0:00:44]} 19. Bxf5 {[%emt 0:00:06]} Kg7 {[%emt 0:00:19]} 20. g3 {[%emt 0:02:37]} Kf6 {[%emt 0:00:51]} 21. Bd3 {[%emt 0:01:28]} h5 {[%emt 0:00:24]} 22. Kg2 {[%emt 0:01:02]} Rh8 {[%emt 0:00:19]} 23. Kf3 {[%emt 0:01:21]} fxg3 {[%emt 0:00:14]} 24. hxg3 {[%emt 0:01:01]} h4 {[%emt 0:00:37]} 25. gxh4 {[%emt 0:01:11]} Rxh4 {[%emt 0:00:13]} 26. Rh1 {[%emt 0:00:25]} Rxh1 {[%emt 0:00:57]} 27. Rxh1 {[%emt 0:00:05]} Rb4 {[%emt 0:00:45]} 28. Rh6+ {[%emt 0:00:59]} Ke7 {[%emt 0:00:06]} 29. c4 {[%emt 0:01:11]} a5 {[%emt 0:03:04]} 30. c5 {[%emt 0:02:05]} Bxc5 {[%emt 0:00:09]} 31. Rxc6 {[%emt 0:00:14]} Bb6 {[%emt 0:00:16]} 32. Ke2 {[%emt 0:00:48]} Kd7 {[%emt 0:00:16]} 33. Rf6 {[%emt 0:00:43]} Ke7 {[%emt 0:00:07]} 34. Rc6 {[%emt 0:00:25]} 1/2-1/2

[Event "Chinese Championship-B Women 2024"]
[Site "Liaocheng"]
[Date "2024.04.24"]
[Round "7.2"]
[White "Zhou, Shumeng"]
[Black "Shao, Qiyu"]
[Result "1-0"]
[WhiteElo "1800"]
[BlackElo "1764"]
[PlyCount "115"]
[EventDate "2024.04.24"]
[EventType "swiss"]
[EventCountry "CHN"]
[TimeControl "5400+30"]

1. e4 {[%emt 0:00:03]} c5 {[%emt 0:03:00]} 2. Nf3 {[%emt 0:00:06]} a6 {[%emt 0:00:03]} 3. b3 {[%emt 0:00:21]} e6 {[%emt 0:06:56]} 4. Bb2 {[%emt 0:01:46]} Nc6 {[%emt 0:01:07]} 5. c4 {[%emt 0:00:13]} d5 {[%emt 0:06:34]} 6. exd5 {[%emt 0:04:26]} exd5 {[%emt 0:00:14]} 7. cxd5 {[%emt 0:01:13]} Nb4 {[%emt 0:02:33]} 8. a3 {[%emt 0:10:43]} Nxd5 {[%emt 0:00:17]} 9. Bc4 {[%emt 0:03:31]} Ngf6 {[%emt 0:10:36]} 10. O-O {[%emt 0:01:44]} Be7 {[%emt 0:00:42]} 11. d4 {[%emt 0:03:55]} O-O {[%emt 0:05:33]} 12. dxc5 {[%emt 0:05:14]} Bxc5 {[%emt 0:02:57]} 13. Qc2 {[%emt 0:13:37]} Be6 {[%emt 0:22:26]} 14. Ng5 {[%emt 0:07:13]} Qb6 {[%emt 0:09:02]} 15. Bxd5 {[%emt 0:04:51]} Bxd5 {[%emt 0:03:33]} 16. Bxf6 {[%emt 0:00:05]} g6 {[%emt 0:00:44]} 17. Bb2 {[%emt 0:04:29]} f6 {[%emt 0:01:49]} 18. Ne4 {[%emt 0:03:00]} Bd4 {[%emt 0:01:32]} 19. Ng3 {[%emt 0:05:22]} Rfd8 {[%emt 0:03:19]} 20. Bxd4 {[%emt 0:00:40]} Qxd4 {[%emt 0:00:04]} 21. Qc3 {[%emt 0:00:08]} Qf4 {[%emt 0:00:53]} 22. Qe3 {[%emt 0:02:11]} Qxe3 {[%emt 0:00:52]} 23. fxe3 {[%emt 0:00:01]} Bxb3 {[%emt 0:17:14]} 24. Nc3 {[%emt 0:00:57]} Rd3 {[%emt 0:00:00]} 25. Nce4 {[%emt 0:00:17]} f5 {[%emt 0:00:00]} 26. Nc5 {[%emt 0:00:09]} Rxe3 {[%emt 0:00:00]} 27. Nxb3 {[%emt 0:00:48]} Rxb3 {[%emt 0:00:00]} 28. Rfb1 {[%emt 0:00:02]} Rxb1+ {[%emt 0:00:00]} 29. Rxb1 {[%emt 0:00:01]} b5 {[%emt 0:00:00]} 30. Kf2 {[%emt 0:00:34]} Rc8 {[%emt 0:00:00]} 31. Rb3 {[%emt 0:00:36]} Rc2+ {[%emt 0:00:00]} 32. Ne2 {[%emt 0:00:07]} Kf7 {[%emt 0:00:00]} 33. Re3 {[%emt 0:00:52]} Ra2 {[%emt 0:00:00]} 34. Kf3 {[%emt 0:00:51]} g5 {[%emt 0:01:23]} 35. h3 {[%emt 0:05:33]} h5 {[%emt 0:01:53]} 36. Kf2 {[%emt 0:03:11]} f4 {[%emt 0:00:46]} 37. Rc3 {[%emt 0:00:11]} a5 {[%emt 0:00:40]} 38. Rb3 {[%emt 0:08:34]} Kf6 {[%emt 0:00:31]} 39. Rxb5 {[%emt 0:01:24]} Rxa3 {[%emt 0:00:04]} 40. Nd4 {[%emt 0:00:23]} Ra2+ {[%emt 0:00:30]} 41. Kg1 {[%emt 0:00:11]} a4 {[%emt 0:00:37]} 42. Ra5 {[%emt 0:00:12]} Ra1+ {[%emt 0:00:50]} 43. Kh2 {[%emt 0:01:49]} Ra2 {[%emt 0:00:04]} 44. Ra6+ {[%emt 0:01:21]} Kf7 {[%emt 0:02:34]} 45. Ne6 {[%emt 0:00:22]} Ra3 {[%emt 0:00:37]} 46. Nxg5+ {[%emt 0:00:07]} Ke7 {[%emt 0:00:07]} 47. Nf3 {[%emt 0:01:41]} Kf7 {[%emt 0:00:20]} 48. Ne5+ {[%emt 0:00:32]} Kg7 {[%emt 0:00:06]} 49. Rg6+ {[%emt 0:00:39]} Kh7 {[%emt 0:00:18]} 50. Ra6 {[%emt 0:00:33]} Ra2 {[%emt 0:00:39]} 51. Rf6 {[%emt 0:01:16]} Re2 {[%emt 0:00:50]} 52. Nf3 {[%emt 0:00:47]} a3 {[%emt 0:01:05]} 53. Rxf4 {[%emt 0:00:17]} Kg6 {[%emt 0:00:05]} 54. Ra4 {[%emt 0:00:05]} a2 {[%emt 0:00:46]} 55. Ra5 {[%emt 0:00:23]} Rb2 {[%emt 0:00:27]} 56. Ne5+ {[%emt 0:00:19]} Kf6 {[%emt 0:00:12]} 57. Nd3 {[%emt 0:00:41]} Rd2 {[%emt 0:00:58]} 58. Nb4 {[%emt 0:00:14]} 1-0

[Event "Chinese Championship-B Women 2024"]
[Site "Liaocheng"]
[Date "2024.04.24"]
[Round "7.3"]
[White "Hu, Yu A."]
[Black "Yang, Yijing"]
[Result "0-1"]
[WhiteElo "2148"]
[BlackElo "2040"]
[PlyCount "96"]
[EventDate "2024.04.24"]
[EventType "swiss"]
[EventCountry "CHN"]
[TimeControl "5400+30"]

1. Nf3 {[%emt 0:00:11]} d5 {[%emt 0:03:57]} 2. g3 {[%emt 0:00:29]} Nf6 {[%emt 0:01:18]} 3. c4 {[%emt 0:00:27]} c5 {[%emt 0:03:24]} 4. cxd5 {[%emt 0:06:04]} Nxd5 {[%emt 0:00:11]} 5. Bg2 {[%emt 0:00:23]} Nc6 {[%emt 0:00:47]} 6. O-O {[%emt 0:03:18]} e5 {[%emt 0:02:02]} 7. d3 {[%emt 0:02:03]} Be7 {[%emt 0:03:03]} 8. Bd2 {[%emt 0:05:03]} Be6 {[%emt 0:02:08]} 9. Nc3 {[%emt 0:00:11]} O-O {[%emt 0:08:05]} 10. Rc1 {[%emt 0:00:32]} Nxc3 {[%emt 0:06:00]} 11. Bxc3 {[%emt 0:00:18]} f6 {[%emt 0:00:12]} 12. Nd2 {[%emt 0:07:39]} Rc8 {[%emt 0:00:24]} 13. Qa4 {[%emt 0:09:31]} Qd7 {[%emt 0:02:09]} 14. Rfe1 {[%emt 0:08:53]} Rfd8 {[%emt 0:20:07]} 15. Nc4 {[%emt 0:11:56]} b6 {[%emt 0:02:29]} 16. Bd2 {[%emt 0:19:52]} Rc7 {[%emt 0:07:09]} 17. f4 {[%emt 0:01:22]} Rb8 {[%emt 0:05:42]} 18. Qd1 {[%emt 0:11:08]} b5 {[%emt 0:02:56]} 19. Ne3 {[%emt 0:00:29]} Qd4 {[%emt 0:06:34]} 20. Kh1 {[%emt 0:01:40]} exf4 {[%emt 0:10:41]} 21. Nc2 {[%emt 0:00:06]} Qd7 {[%emt 0:04:41]} 22. Bxf4 {[%emt 0:00:05]} Bd6 {[%emt 0:00:05]} 23. d4 {[%emt 0:03:53]} Bxf4 {[%emt 0:00:48]} 24. gxf4 {[%emt 0:00:01]} cxd4 {[%emt 0:01:28]} 25. Nxd4 {[%emt 0:01:08]} Nxd4 {[%emt 0:00:01]} 26. Rxc7 {[%emt 0:00:07]} Qxc7 {[%emt 0:00:03]} 27. Qxd4 {[%emt 0:00:06]} Bxa2 {[%emt 0:01:19]} 28. Ra1 {[%emt 0:03:30]} Rd8 {[%emt 0:00:20]} 29. Qg1 {[%emt 0:00:05]} Qc2 {[%emt 0:02:25]} 30. Qxa7 {[%emt 0:01:29]} Rd1+ {[%emt 0:00:23]} 31. Rxd1 {[%emt 0:00:02]} Qxd1+ {[%emt 0:00:03]} 32. Qg1 {[%emt 0:00:05]} Qxe2 {[%emt 0:00:05]} 33. Qc1 {[%emt 0:00:27]} Bc4 {[%emt 0:01:24]} 34. b3 {[%emt 0:00:57]} Bxb3 {[%emt 0:00:54]} 35. Qc8+ {[%emt 0:00:14]} Kf7 {[%emt 0:00:01]} 36. Qc7+ {[%emt 0:03:29]} Qe7 {[%emt 0:00:49]} 37. Qc3 {[%emt 0:00:22]} Bc4 {[%emt 0:01:02]} 38. Qd2 {[%emt 0:01:00]} Qe2 {[%emt 0:02:13]} 39. Qd7+ {[%emt 0:00:16]} Kg6 {[%emt 0:00:09]} 40. h3 {[%emt 0:00:27]} Be6 {[%emt 0:02:01]} 41. Qe8+ {[%emt 0:00:34]} Kh6 {[%emt 0:00:02]} 42. Qb8 {[%emt 0:00:43]} Qe1+ {[%emt 0:00:31]} 43. Kh2 {[%emt 0:00:02]} b4 {[%emt 0:00:05]} 44. Qb6 {[%emt 0:01:18]} b3 {[%emt 0:00:37]} 45. f5 {[%emt 0:00:33]} Qe5+ {[%emt 0:00:11]} 46. Kh1 {[%emt 0:00:05]} Qxf5 {[%emt 0:00:29]} 47. Qe3+ {[%emt 0:00:03]} g5 {[%emt 0:00:08]} 48. Qc3 {[%emt 0:00:22]} Bd5 {[%emt 0:00:31]} 0-1

[Event "Chinese Championship-B Women 2024"]
[Site "Liaocheng"]
[Date "2024.04.24"]
[Round "7.4"]
[White "Ren, Xiaoyi"]
[Black "Zhao, Yunqing"]
[Result "0-1"]
[WhiteElo "2075"]
[BlackElo "1965"]
[PlyCount "64"]
[EventDate "2024.04.24"]
[EventType "swiss"]
[EventCountry "CHN"]
[TimeControl "5400+30"]

1. d4 {[%emt 0:11:01]} Nf6 {[%emt 0:00:06]} 2. c4 {[%emt 0:00:13]} e6 {[%emt 0:00:05]} 3. Nf3 {[%emt 0:00:03]} d5 {[%emt 0:00:14]} 4. Nc3 {[%emt 0:00:10]} Bb4 {[%emt 0:00:07]} 5. Bg5 {[%emt 0:00:49]} h6 {[%emt 0:00:32]} 6. Bf4 {[%emt 0:02:57]} dxc4 {[%emt 0:02:56]} 7. a3 {[%emt 0:02:29]} Bxc3+ {[%emt 0:05:03]} 8. bxc3 {[%emt 0:00:05]} O-O {[%emt 0:13:13]} 9. e3 {[%emt 0:03:26]} b5 {[%emt 0:05:03]} 10. a4 {[%emt 0:00:33]} c6 {[%emt 0:00:23]} 11. g4 {[%emt 0:00:44]} Nd5 {[%emt 0:14:34]} 12. g5 {[%emt 0:15:37]} e5 {[%emt 0:21:11]} 13. Bxe5 {[%emt 0:01:34]} hxg5 {[%emt 0:01:19]} 14. axb5 {[%emt 0:09:36]} cxb5 {[%emt 0:01:00]} 15. Bg2 {[%emt 0:00:11]} f6 {[%emt 0:07:29]} 16. Bxb8 {[%emt 0:00:49]} Rxb8 {[%emt 0:00:06]} 17. Rxa7 {[%emt 0:00:05]} Bf5 {[%emt 0:05:47]} 18. Qa1 {[%emt 0:07:04]} Bd3 {[%emt 0:04:32]} 19. Nd2 {[%emt 0:03:32]} b4 {[%emt 0:11:08]} 20. cxb4 {[%emt 0:10:04]} Nxb4 {[%emt 0:00:40]} 21. Qc3 {[%emt 0:00:14]} Qb6 {[%emt 0:00:55]} 22. Ra4 {[%emt 0:00:16]} Rfc8 {[%emt 0:00:57]} 23. h4 {[%emt 0:03:57]} Rc7 {[%emt 0:02:11]} 24. hxg5 {[%emt 0:04:48]} Qb5 {[%emt 0:00:56]} 25. Rxb4 {[%emt 0:19:30]} Qxb4 {[%emt 0:00:23]} 26. Bd5+ {[%emt 0:01:39]} Kf8 {[%emt 0:00:10]} 27. gxf6 {[%emt 0:00:50]} gxf6 {[%emt 0:00:32]} 28. Rh8+ {[%emt 0:00:53]} Ke7 {[%emt 0:00:56]} 29. Qxb4+ {[%emt 0:01:02]} Rxb4 {[%emt 0:00:05]} 30. e4 {[%emt 0:00:03]} Ra4 {[%emt 0:02:23]} 31. Nf3 {[%emt 0:00:52]} c3 {[%emt 0:00:24]} 32. Rh7+ {[%emt 0:00:42]} Kd6 {[%emt 0:00:19]} 0-1

[Event "Chinese Championship-B Women 2024"]
[Site "Liaocheng"]
[Date "2024.04.24"]
[Round "7.5"]
[White "Du, Yuxin"]
[Black "Xue, Shixuan"]
[Result "1-0"]
[WhiteElo "1960"]
[BlackElo "1790"]
[PlyCount "59"]
[EventDate "2024.04.24"]
[EventType "swiss"]
[EventCountry "CHN"]
[TimeControl "5400+30"]

1. e4 {[%emt 0:00:07]} e6 {[%emt 0:00:09]} 2. d4 {[%emt 0:00:12]} d5 {[%emt 0:00:06]} 3. Nd2 {[%emt 0:01:16]} c5 {[%emt 0:00:24]} 4. Ngf3 {[%emt 0:01:15]} Nf6 {[%emt 0:00:32]} 5. exd5 {[%emt 0:07:05]} exd5 {[%emt 0:04:55]} 6. Bb5+ {[%emt 0:09:52]} Bd7 {[%emt 0:02:18]} 7. Qe2+ {[%emt 0:10:44]} Be7 {[%emt 0:06:54]} 8. dxc5 {[%emt 0:04:57]} O-O {[%emt 0:01:02]} 9. O-O {[%emt 0:04:02]} Bxc5 {[%emt 0:04:38]} 10. Nb3 {[%emt 0:02:25]} Re8 {[%emt 0:01:29]} 11. Qd3 {[%emt 0:00:08]} Bd6 {[%emt 0:08:07]} 12. Bg5 {[%emt 0:08:07]} a6 {[%emt 0:08:58]} 13. Bxf6 {[%emt 0:22:35]} Bxb5 {[%emt 0:09:51]} 14. Qxb5 {[%emt 0:01:30]} axb5 {[%emt 0:03:09]} 15. Bxd8 {[%emt 0:00:07]} Rxd8 {[%emt 0:00:02]} 16. a3 {[%emt 0:03:18]} b4 {[%emt 0:06:41]} 17. axb4 {[%emt 0:00:14]} Rxa1 {[%emt 0:00:34]} 18. Rxa1 {[%emt 0:00:06]} Bxb4 {[%emt 0:00:21]} 19. Ra7 {[%emt 0:07:21]} b6 {[%emt 0:04:25]} 20. Nbd4 {[%emt 0:03:23]} Bc5 {[%emt 0:02:02]} 21. Kf1 {[%emt 0:05:19]} Nd7 {[%emt 0:13:16]} 22. Nc6 {[%emt 0:00:54]} Rc8 {[%emt 0:00:52]} 23. Rxd7 {[%emt 0:00:17]} Rxc6 {[%emt 0:00:06]} 24. Rd8+ {[%emt 0:04:18]} Bf8 {[%emt 0:00:04]} 25. Ne5 {[%emt 0:00:11]} Rxc2 {[%emt 0:07:36]} 26. Nd7 {[%emt 0:00:06]} g6 {[%emt 0:00:04]} 27. Rxf8+ {[%emt 0:00:11]} Kg7 {[%emt 0:00:05]} 28. Rb8 {[%emt 0:00:18]} Rxb2 {[%emt 0:05:52]} 29. Rxb6 {[%emt 0:00:07]} Rd2 {[%emt 0:00:45]} 30. Ke1 {[%emt 0:00:26]} 1-0

[Event "Chinese Championship-B Women 2024"]
[Site "Liaocheng"]
[Date "2024.04.24"]
[Round "7.6"]
[White "Wang, Yi(Bj)"]
[Black "Chu, Ruotong"]
[Result "0-1"]
[WhiteElo "1782"]
[BlackElo "2124"]
[PlyCount "88"]
[EventDate "2024.04.24"]
[EventType "swiss"]
[EventCountry "CHN"]
[TimeControl "5400+30"]

1. e4 {[%emt 0:00:01]} c5 {[%emt 0:12:35]} 2. Nc3 {[%emt 0:01:51]} Nc6 {[%emt 0:03:34]} 3. Bb5 {[%emt 0:00:36]} Nf6 {[%emt 0:07:30]} 4. Nf3 {[%emt 0:00:37]} Nd4 {[%emt 0:05:21]} 5. e5 {[%emt 0:05:04]} Nxb5 {[%emt 0:01:36]} 6. Nxb5 {[%emt 0:00:03]} Nd5 {[%emt 0:00:39]} 7. Ng5 {[%emt 0:04:42]} Nc7 {[%emt 0:07:41]} 8. Qh5 {[%emt 0:05:11]} g6 {[%emt 0:02:22]} 9. Qf3 {[%emt 0:00:02]} f6 {[%emt 0:02:27]} 10. exf6 {[%emt 0:00:57]} Bh6 {[%emt 0:00:07]} 11. f7+ {[%emt 0:01:24]} Kf8 {[%emt 0:00:02]} 12. Nxc7 {[%emt 0:00:22]} Qxc7 {[%emt 0:00:10]} 13. d3 {[%emt 0:10:26]} Qe5+ {[%emt 0:02:28]} 14. Qe3 {[%emt 0:19:17]} Qxe3+ {[%emt 0:01:02]} 15. Bxe3 {[%emt 0:00:02]} Bxg5 {[%emt 0:00:14]} 16. Bxg5 {[%emt 0:00:02]} Kxf7 {[%emt 0:00:08]} 17. Kd2 {[%emt 0:00:11]} b6 {[%emt 0:02:48]} 18. Rae1 {[%emt 0:00:36]} e6 {[%emt 0:00:32]} 19. Re4 {[%emt 0:03:40]} h6 {[%emt 0:00:56]} 20. Rf4+ {[%emt 0:02:11]} Kg8 {[%emt 0:00:51]} 21. Bf6 {[%emt 0:00:51]} Rh7 {[%emt 0:00:13]} 22. h4 {[%emt 0:00:25]} Rf7 {[%emt 0:02:06]} 23. Rh3 {[%emt 0:04:50]} d6 {[%emt 0:01:05]} 24. Rg3 {[%emt 0:10:51]} e5 {[%emt 0:05:23]} 25. Rff3 {[%emt 0:00:45]} Kh7 {[%emt 0:00:26]} 26. h5 {[%emt 0:01:37]} g5 {[%emt 0:02:53]} 27. Bd8 {[%emt 0:07:04]} Rd7 {[%emt 0:03:29]} 28. Bxg5 {[%emt 0:00:53]} hxg5 {[%emt 0:02:25]} 29. Rxg5 {[%emt 0:00:03]} Rg7 {[%emt 0:00:55]} 30. Rxg7+ {[%emt 0:03:23]} Kxg7 {[%emt 0:00:12]} 31. g4 {[%emt 0:00:02]} Bb7 {[%emt 0:02:38]} 32. Rg3 {[%emt 0:00:13]} Rf8 {[%emt 0:01:41]} 33. Ke3 {[%emt 0:01:32]} Kh6 {[%emt 0:00:50]} 34. c3 {[%emt 0:01:36]} Kg5 {[%emt 0:03:29]} 35. a3 {[%emt 0:09:05]} Rf4 {[%emt 0:04:01]} 36. Rg1 {[%emt 0:01:22]} Rf3+ {[%emt 0:03:11]} 37. Ke2 {[%emt 0:00:03]} Rh3 {[%emt 0:00:35]} 38. d4 {[%emt 0:04:43]} cxd4 {[%emt 0:11:21]} 39. cxd4 {[%emt 0:00:11]} Rb3 {[%emt 0:00:19]} 40. dxe5 dxe5 {[%emt 0:01:56]} 41. Rc1 {[%emt 0:01:48]} Bf3+ {[%emt 0:01:29]} 42. Kd2 {[%emt 0:00:40]} Rxb2+ {[%emt 0:00:08]} 43. Ke3 {[%emt 0:00:04]} Rb3+ {[%emt 0:00:07]} 44. Kd2 {[%emt 0:00:03]} Rxa3 {[%emt 0:00:35]} 0-1

[Event "Chinese Championship-B Women 2024"]
[Site "Liaocheng"]
[Date "2024.04.24"]
[Round "7.7"]
[White "Sun, Jihan"]
[Black "Guo, Weibao"]
[Result "1-0"]
[WhiteElo "1781"]
[BlackElo "1954"]
[PlyCount "97"]
[EventDate "2024.04.24"]
[EventType "swiss"]
[EventCountry "CHN"]
[TimeControl "5400+30"]

1. e4 {[%emt 0:00:02]} e6 {[%emt 0:00:05]} 2. d4 {[%emt 0:00:05]} d5 {[%emt 0:00:02]} 3. Nd2 {[%emt 0:00:07]} Nf6 {[%emt 0:00:04]} 4. e5 {[%emt 0:00:05]} Nfd7 {[%emt 0:00:03]} 5. Bd3 {[%emt 0:00:07]} c5 {[%emt 0:00:04]} 6. c3 {[%emt 0:00:03]} Nc6 {[%emt 0:00:34]} 7. Ne2 {[%emt 0:00:07]} Qb6 {[%emt 0:02:39]} 8. Nf3 {[%emt 0:00:05]} f6 {[%emt 0:00:08]} 9. exf6 {[%emt 0:06:16]} Nxf6 {[%emt 0:00:03]} 10. O-O {[%emt 0:01:38]} Bd6 {[%emt 0:00:11]} 11. b3 {[%emt 0:07:52]} O-O {[%emt 0:04:03]} 12. Bf4 {[%emt 0:08:27]} Bxf4 {[%emt 0:07:21]} 13. Nxf4 {[%emt 0:00:07]} cxd4 {[%emt 0:08:33]} 14. cxd4 {[%emt 0:01:31]} Ne4 {[%emt 0:04:39]} 15. g3 {[%emt 0:05:21]} Bd7 {[%emt 0:13:21]} 16. Re1 {[%emt 0:06:19]} Nf6 {[%emt 0:10:17]} 17. Qd2 {[%emt 0:24:37]} Rae8 {[%emt 0:05:33]} 18. Rad1 {[%emt 0:01:41]} Qb4 {[%emt 0:09:22]} 19. Qxb4 {[%emt 0:05:45]} Nxb4 {[%emt 0:00:01]} 20. Bb1 {[%emt 0:00:01]} Ne4 {[%emt 0:09:41]} 21. Ne5 {[%emt 0:03:44]} Bc8 {[%emt 0:08:19]} 22. a3 {[%emt 0:02:15]} Na6 {[%emt 0:02:10]} 23. Bxe4 {[%emt 0:03:00]} dxe4 {[%emt 0:00:01]} 24. Rxe4 {[%emt 0:00:24]} Nc7 {[%emt 0:00:15]} 25. a4 {[%emt 0:09:05]} Nd5 {[%emt 0:05:15]} 26. Nxd5 {[%emt 0:00:18]} exd5 {[%emt 0:00:01]} 27. Re3 {[%emt 0:01:22]} Bf5 {[%emt 0:01:33]} 28. Rc1 {[%emt 0:00:05]} Rc8 {[%emt 0:01:33]} 29. Rec3 {[%emt 0:01:40]} Rxc3 {[%emt 0:00:54]} 30. Rxc3 {[%emt 0:00:04]} Rc8 {[%emt 0:00:20]} 31. Rxc8+ {[%emt 0:04:27]} Bxc8 {[%emt 0:00:01]} 32. a5 {[%emt 0:00:01]} Bf5 {[%emt 0:00:30]} 33. f3 {[%emt 0:02:02]} Kf8 {[%emt 0:00:23]} 34. h4 {[%emt 0:01:10]} Ke7 {[%emt 0:00:24]} 35. Kf2 {[%emt 0:00:29]} Kd6 {[%emt 0:00:18]} 36. Ke3 {[%emt 0:01:40]} Kc7 {[%emt 0:01:53]} 37. g4 {[%emt 0:01:28]} Bc2 {[%emt 0:00:46]} 38. b4 {[%emt 0:00:01]} b6 {[%emt 0:00:47]} 39. axb6+ {[%emt 0:03:34]} Kxb6 {[%emt 0:00:08]} 40. f4 {[%emt 0:00:39]} Kb5 {[%emt 0:00:35]} 41. Kd2 {[%emt 0:00:17]} Be4 {[%emt 0:00:32]} 42. Kc3 {[%emt 0:00:04]} Ka4 {[%emt 0:04:36]} 43. h5 {[%emt 0:00:09]} a5 {[%emt 0:02:18]} 44. bxa5 {[%emt 0:00:05]} Kxa5 {[%emt 0:00:01]} 45. h6 {[%emt 0:01:21]} g6 {[%emt 0:01:33]} 46. Nd7 {[%emt 0:00:54]} g5 {[%emt 0:00:51]} 47. fxg5 {[%emt 0:00:21]} Kb5 {[%emt 0:00:28]} 48. Ne5 {[%emt 0:00:05]} Kb6 {[%emt 0:00:25]} 49. g6 {[%emt 0:00:06]} 1-0